bitfinex/quotes_SOLUSD_20241121
["timestamp","ask_amount","ask_price","bid_price","bid_amount"]
[1732160349205,24.47090801,235.5,235.42,24.47090801]
[1732160349407,0.79647256,235.49,235.42,24.47090801]
[1732160350128,25.26738057,235.49,235.41,24.47090801]
[1732160350429,24.47090801,235.47,235.4,0.4653634]
[1732160350610,0.79653837,235.46,235.4,0.4653634]
[1732160352204,24.47090801,235.44,235.4,0.4653634]
[1732160352431,0.79663396,235.43,235.4,0.4653634]
[1732160352923,20.5,235.41,235.4,0.4653634]
[1732160353129,45.07376589,235.41,235.4,0.4653634]
[1732160353331,69.5446739,235.41,235.4,0.4653634]
[1732160353644,0.5,235.35,235.26,24.47090801]
[1732160353803,24.47090801,235.33,235.26,24.47090801]
[1732160354008,0.79704887,235.32,235.26,24.47090801]
[1732160354938,20.0,235.27,235.17,0.4653634]
[1732160355235,20.0,235.27,235.18,24.47090801]
[1732160355236,25.26815532,235.26,235.18,24.47090801]
[1732160355530,24.47090801,235.24,235.17,0.4653634]
[1732160355725,0.79735464,235.23,235.17,0.4653634]
[1732160356320,24.47090801,235.22,235.17,0.4653634]
[1732160356521,0.79741845,235.21,235.17,0.4653634]
[1732160357219,20.0,235.19,235.17,0.4653634]
[1732160357425,0.79753868,235.18,235.17,0.4653634]
[1732160357612,25.26844669,235.18,235.17,0.4653634]
[1732160358332,0.79753868,235.18,235.17,0.4653634]
[1732160359216,45.26844669,235.18,235.17,0.4653634]
[1732160359938,69.54533069,235.18,235.17,0.4653634]
[1732160360731,45.26844669,235.18,235.17,0.4653634]
[1732160361618,0.79753868,235.18,235.17,0.4653634]
[1732160361819,0.79747616,235.21,235.17,0.4653634]
[1732160362133,0.79747616,235.21,235.2,24.47090801]
[1732160362332,0.5,235.32,235.2,24.47090801]
[1732160362536,0.5,235.32,235.17,24.93627141]
[1732160362537,0.79717041,235.31,235.23,24.47090801]
[1732160362717,0.5,235.3,235.23,24.47090801]
[1732160363033,0.79719443,235.29,235.23,24.47090801]
[1732160363637,0.79719443,235.29,235.27,24.47090801]
[1732160363933,0.79704558,235.34,235.27,24.47090801]
[1732160364259,0.79704558,235.34,235.29,24.47090801]
[1732160364637,0.79704558,235.34,235.18,23.776884]
[1732160364638,0.79698521,235.36,235.33,39.85426801]
[1732160364815,0.79698521,235.36,235.23,5.03600461]
[1732160364816,0.79676849,235.43,235.35,39.85426801]
[1732160365023,0.79676849,235.43,235.38,39.85426801]
[1732160365217,40.35426801,235.42,235.34,39.85426801]
[1732160365426,0.79681017,235.41,235.36,39.85426801]
[1732160365642,0.79681017,235.41,235.4,39.85426801]
[1732160365823,39.85426801,235.48,235.4,39.85426801]
[1732160366018,0.79660836,235.47,235.4,39.85426801]
[1732160366441,0.79660836,235.47,235.44,39.85426801]
[1732160366747,0.5,235.59,235.46,39.85426801]
[1732160366748,0.79651838,235.58,235.46,39.85426801]
[1732160366926,0.79651838,235.58,235.5,39.85426801]
[1732160367126,0.79651838,235.58,235.52,39.85426801]
[1732160367652,0.79651838,235.58,235.43,39.85426801]
[1732160367653,0.79620086,235.65,235.57,39.85426801]
[1732160367944,0.79597213,235.64,235.55,39.85426801]
[1732160368240,39.85426801,235.63,235.55,39.85426801]
[1732160368416,0.79606143,235.62,235.57,39.85426801]
[1732160368836,0.79606143,235.62,235.59,39.85426801]
[1732160369033,0.79593333,235.66,235.59,39.85426801]
[1732160369440,39.85426801,235.61,235.53,39.85426801]
[1732160369639,0.79615431,235.6,235.53,39.85426801]
[1732160370029,20.79615431,235.6,235.53,39.85426801]
[1732160370538,0.79615431,235.6,235.56,39.85426801]
[1732160370751,0.79605205,235.63,235.56,39.85426801]
[1732160371041,20.79605205,235.63,235.54,39.85426801]
[1732160371540,39.85426801,235.6,235.52,39.85426801]
[1732160371732,39.85426801,235.56,235.48,39.85426801]
[1732160371938,0.79627535,235.55,235.48,39.85426801]
[1732160372138,39.85426801,235.52,235.44,39.85426801]
[1732160372340,20.0,235.49,235.42,39.85426801]
[1732160372535,0.79652427,235.48,235.42,39.85426801]
[1732160373647,39.85426801,235.44,235.36,39.85426801]
[1732160373823,20.0,235.41,235.34,39.85426801]
[1732160374018,0.79679047,235.4,235.34,39.85426801]
[1732160374214,40.65105848,235.4,235.32,39.85426801]
[1732160374928,39.85426801,235.38,235.3,39.85426801]
[1732160375123,20.0,235.35,235.28,39.85426801]
[1732160375426,0.7969496,235.34,235.28,39.85426801]
[1732160375831,0.7969496,235.34,235.32,39.85426801]
[1732160376126,0.79691418,235.39,235.33,39.85426801]
[1732160376322,0.79691418,235.39,235.35,39.85426801]
[1732160376522,0.79691418,235.39,235.33,39.85426801]
[1732160377349,0.79691418,235.39,235.35,39.85426801]
[1732160377534,0.79691418,235.39,235.37,39.85426801]
[1732160377730,0.79666377,235.42,235.37,39.85426801]
[1732160377938,0.79664218,235.47,235.41,39.85426801]
[1732160378835,0.79664218,235.47,235.39,39.85426801]
[1732160379037,40.35426801,235.46,235.37,39.85426801]
[1732160379346,20.79670797,235.45,235.39,39.85426801]
[1732160379547,20.79670797,235.45,235.25,0.5]
[1732160379754,20.0,235.41,235.34,39.85426801]
[1732160379957,0.79678754,235.4,235.3,39.85426801]
[1732160380131,20.79665592,235.49,235.31,4.6351456]
[1732160380331,20.79665592,235.49,235.44,39.85426801]
[1732160380531,20.79665592,235.49,235.42,39.85426801]
[1732160381351,20.0,235.47,235.4,39.85426801]
[1732160381553,0.79664361,235.46,235.42,39.85426801]
[1732160381751,0.79664361,235.46,235.44,39.85426801]
[1732160382159,0.79648696,235.53,235.44,39.85426801]
[1732160382331,0.79648696,235.53,235.51,39.85426801]
[1732160382537,0.79620661,235.6,235.52,39.85426801]
[1732160382850,0.79620661,235.6,235.54,39.85426801]
[1732160383150,40.65047462,235.6,235.52,39.85426801]
[1732160383649,39.85426801,235.56,235.48,39.85426801]
[1732160383853,0.79635377,235.55,235.48,39.85426801]
[1732160384754,20.79635377,235.55,235.48,39.85426801]
[1732160386154,0.79635377,235.55,235.5,39.85426801]
[1732160386349,0.7962544,235.54,235.51,39.85426801]
[1732160386655,0.7962336,235.57,235.51,24.49510133]
[1732160387159,0.7962336,235.57,235.53,24.49510133]
[1732160387338,0.7962336,235.57,235.42,0.5]
[1732160387543,0.79617878,235.6,235.53,24.49510133]
[1732160388244,0.79617878,235.6,235.43,24.49510133]
[1732160388245,24.49510133,235.59,235.51,24.49510133]
[1732160388438,4.2443,235.61,235.49,24.49510133]
[1732160388439,24.49510133,235.57,235.49,24.49510133]
[1732160388636,0.79627891,235.56,235.49,24.49510133]
[1732160388950,20.79627891,235.56,235.49,24.49510133]
[1732160390160,24.49510133,235.53,235.47,24.49510133]
[1732160390362,24.49510133,235.48,235.4,24.49510133]
[1732160390653,0.79652565,235.47,235.43,24.49510133]
[1732160390877,0.79644183,235.49,235.44,24.49510133]
[1732160391061,0.79644183,235.49,235.46,24.49510133]
[1732160391229,0.79637832,235.53,235.46,24.49510133]
[1732160391557,24.49510133,235.52,235.44,24.49510133]
[1732160391766,0.79641977,235.51,235.44,24.49510133]
[1732160391935,0.79641977,235.51,235.45,24.49510133]
[1732160392137,0.79641977,235.51,235.47,24.49510133]
[1732160392859,0.79641977,235.51,235.38,29.1808]
[1732160392860,0.7963381,235.53,235.5,24.49510133]
[1732160393041,0.7963381,235.53,235.48,24.49510133]
[1732160393243,0.7963381,235.53,235.49,24.49510133]
[1732160393960,0.79627763,235.52,235.49,24.49510133]
[1732160394472,0.79628499,235.54,235.49,24.49510133]
[1732160395155,0.79628499,235.54,235.51,24.49510133]
[1732160395339,0.79619389,235.56,235.51,24.49510133]
[1732160396158,0.79619389,235.56,235.51,18.60626505]
[1732160396358,0.79616805,235.55,235.51,18.60626505]
[1732160396567,0.5,235.66,235.53,24.49510133]
[1732160396568,0.79616601,235.58,235.53,24.49510133]
[1732160396863,0.79616601,235.58,235.55,24.49510133]
[1732160397041,0.79607127,235.62,235.57,24.49510133]
[1732160397652,0.79607127,235.62,235.59,24.49510133]
[1732160397855,0.79607127,235.62,235.54,11.9577]
[1732160397856,25.29101582,235.65,235.57,24.49510133]
[1732160398043,24.49510133,235.63,235.55,24.49510133]
[1732160398239,24.49510133,235.61,235.53,24.49510133]
[1732160398466,0.7960794,235.6,235.54,24.49510133]
[1732160398762,24.49510133,235.56,235.44,24.49510133]
[1732160398965,24.49510133,235.53,235.45,24.49510133]
[1732160399258,0.79627321,235.52,235.47,24.49510133]
[1732160399660,0.79627321,235.52,235.49,24.49510133]
[1732160399839,24.49510133,235.5,235.42,11.9577]
[1732160400452,24.49510133,235.5,235.43,24.49510133]
[1732160400867,8.49904682,235.51,235.43,24.49510133]
[1732160401157,0.7963902,235.5,235.43,24.49510133]
[1732160401359,24.49510133,235.54,235.45,24.49510133]
[1732160401663,24.49510133,235.52,235.43,24.49510133]
[1732160401961,24.49510133,235.48,235.39,24.49510133]
[1732160402143,0.79655818,235.47,235.41,24.49510133]
[1732160402759,0.79655818,235.47,235.39,24.49510133]
[1732160402959,24.49510133,235.44,235.37,24.49510133]
[1732160403159,0.7966515,235.43,235.37,24.49510133]
[1732160404246,42.25692917,235.65,235.41,24.49510133]
[1732160404247,0.7965915,235.45,235.41,24.49510133]
[1732160404649,24.49510133,235.5,235.41,24.49510133]
[1732160404850,24.49510133,235.48,235.41,24.49510133]
[1732160405057,4.2456,235.54,235.38,23.776884]
[1732160405058,24.49510133,235.46,235.39,24.49510133]
[1732160405257,0.79657818,235.45,235.37,48.27198533]
[1732160405568,24.49510133,235.44,235.36,23.776884]
[1732160405759,0.79664754,235.43,235.36,23.776884]
[1732160406142,0.79664754,235.43,235.37,24.49510133]
[1732160407144,24.49510133,235.42,235.33,24.49510133]
[1732160407358,24.49510133,235.4,235.31,36.98450133]
[1732160407557,0.79682634,235.39,235.31,36.98450133]
[1732160407960,24.49510133,235.38,235.31,24.49510133]
[1732160408274,24.49510133,235.34,235.27,24.49510133]
[1732160408441,0.7969654,235.33,235.25,24.49510133]
[1732160408647,24.49510133,235.32,235.25,24.49510133]
[1732160408872,0.79703365,235.31,235.25,24.49510133]
[1732160410165,24.49510133,235.3,235.23,24.49510133]
[1732160410373,0.79714249,235.29,235.23,24.49510133]
[1732160410757,0.79714249,235.29,235.27,24.49510133]
[1732160410958,20.79703523,235.34,235.27,24.49510133]
[1732160411166,0.79703523,235.34,235.29,24.49510133]
[1732160411364,0.79691133,235.36,235.33,24.49510133]
[1732160411580,0.79691133,235.36,235.35,24.49510133]
[1732160411873,1.33701584,235.38,235.35,24.49510133]
[1732160412052,0.540216,235.38,235.37,24.49510133]
[1732160413050,0.540216,235.38,235.33,24.49510133]
[1732160414870,0.540216,235.38,235.35,24.49510133]
[1732160415252,0.79674665,235.37,235.31,24.49510133]
[1732160415454,25.29184798,235.37,235.28,24.49510133]
[1732160415660,20.0,235.34,235.26,24.49510133]
[1732160415859,0.79699616,235.33,235.26,24.49510133]
[1732160416161,25.29209749,235.33,235.26,24.49510133]
[1732160416747,0.79699616,235.33,235.3,24.49510133]
[1732160416945,0.79699616,235.33,235.32,24.49510133]
[1732160417178,0.79682788,235.37,235.32,24.49510133]
[1732160417978,24.49510133,235.35,235.28,24.49510133]
[1732160418272,24.49510133,235.33,235.26,24.49510133]
[1732160418477,0.79705024,235.32,235.26,24.49510133]
[1732160419550,0.79701827,235.31,235.28,24.49510133]
[1732160419860,0.79696987,235.35,235.3,24.49510133]
[1732160420071,0.79696987,235.35,235.28,24.49510133]
[1732160420786,0.79696987,235.35,235.18,24.276884]
[1732160420969,0.79696987,235.35,235.27,24.49510133]
[1732160421580,24.49510133,235.34,235.27,24.49510133]
[1732160421869,0.79703944,235.33,235.27,24.49510133]
[1732160422770,24.49510133,235.32,235.25,24.49510133]
[1732160422972,0.79704695,235.31,235.18,24.276884]
[1732160423155,0.79704695,235.31,235.27,24.49510133]
[1732160423356,0.79702085,235.33,235.29,24.49510133]
[1732160423556,0.79702085,235.33,235.31,24.49510133]
[1732160423766,0.79694503,235.36,235.32,23.776884]
[1732160423967,0.79694503,235.36,235.34,24.49510133]
[1732160424577,0.79694503,235.36,235.32,48.27198533]
[1732160424766,1.33701242,235.38,235.32,48.27198533]
[1732160425363,25.83211375,235.38,235.32,48.27198533]
[1732160425658,24.49510133,235.36,235.29,24.49510133]
[1732160425856,0.79690489,235.35,235.29,24.49510133]
[1732160426056,0.79690489,235.35,235.28,24.49510133]
[1732160426282,24.49510133,235.34,235.26,24.49510133]
[1732160426488,0.79697038,235.33,235.26,24.49510133]
[1732160426677,25.72167137,235.33,235.26,24.92470099]
[1732160427258,24.92470099,235.32,235.24,24.92470099]
[1732160427492,0.79702338,235.31,235.24,24.92470099]
[1732160427985,0.79702338,235.31,235.25,23.776884]
[1732160428571,25.72172437,235.31,235.25,23.776884]
[1732160430566,0.79702338,235.31,235.25,48.70158499]
[1732160431286,25.72172437,235.31,235.25,23.776884]
[1732160431891,0.79702338,235.31,235.25,48.70158499]
[1732160434087,0.79702338,235.31,235.29,24.92470099]
[1732160434394,0.79702338,235.31,235.25,23.776884]
[1732160434395,8.32987896,235.33,235.31,23.776884]
[1732160434574,0.79694049,235.36,235.31,23.776884]
[1732160434892,0.79694049,235.36,235.31,48.70158499]
[1732160435485,0.79694049,235.36,235.34,48.70158499]
[1732160435681,0.540216,235.38,235.36,23.776884]
[1732160435876,0.540216,235.38,235.37,48.70158499]
[1732160436398,25.72107742,235.55,235.39,0.5]
[1732160436566,25.72107742,235.55,235.48,24.92470099]
[1732160436901,24.92470099,235.51,235.43,24.92470099]
[1732160437069,24.92470099,235.48,235.41,48.70158499]
[1732160437269,0.79639704,235.5,235.38,23.776884]
[1732160437270,0.79642171,235.47,235.38,23.776884]
[1732160437595,24.92470099,235.43,235.36,48.70158499]
[1732160437797,0.79661753,235.42,235.37,24.92470099]
[1732160437971,0.79661753,235.42,235.36,24.92470099]
[1732160438795,0.79661753,235.42,235.35,24.92470099]
[1732160438991,0.79661753,235.42,235.36,24.92470099]
[1732160439327,0.79661753,235.42,235.37,24.92470099]
[1732160439484,0.79662635,235.41,235.37,24.92470099]
[1732160439798,0.79662635,235.41,235.35,24.92470099]
[1732160440181,0.79662635,235.41,235.37,24.92470099]
[1732160440488,8.68207426,235.42,235.4,24.92470099]
[1732160440794,0.79650731,235.47,235.42,23.776884]
[1732160441101,0.5,235.61,235.42,23.776884]
[1732160441102,0.79636487,235.52,235.46,24.92470099]
[1732160441302,24.92470099,235.56,235.49,24.92470099]
[1732160441600,0.79619589,235.55,235.5,48.70158499]
[1732160441818,0.79619589,235.55,235.5,24.92470099]
[1732160441970,0.79619589,235.55,235.48,24.92470099]
[1732160442174,24.92470099,235.54,235.47,24.92470099]
[1732160442372,0.79625116,235.53,235.47,24.92470099]
[1732160442771,0.79625116,235.53,235.48,24.92470099]
[1732160443184,0.79625116,235.53,235.47,24.92470099]
[1732160444707,0.79625116,235.53,235.47,23.776884]
[1732160444906,25.72095215,235.53,235.46,23.776884]
[1732160445210,24.92470099,235.49,235.41,24.92470099]
[1732160445416,0.79644932,235.48,235.41,24.92470099]
[1732160445584,24.92470099,235.47,235.39,24.92470099]
[1732160445788,0.79648374,235.46,235.4,24.92470099]
[1732160446494,0.79648374,235.46,235.41,23.776884]
[1732160446718,24.92470099,235.56,235.42,24.92470099]
[1732160446719,0.79643326,235.47,235.42,24.92470099]
[1732160446912,0.79643326,235.47,235.43,24.92470099]
[1732160447214,4.745,235.57,235.43,24.92470099]
[1732160447215,24.92470099,235.49,235.43,24.92470099]
[1732160447516,0.79641286,235.48,235.41,48.70158499]
[1732160447883,25.72111385,235.48,235.41,48.70158499]
[1732160448216,24.92470099,235.47,235.39,24.92470099]
[1732160448512,24.92470099,235.44,235.38,24.92470099]
[1732160448717,0.7965878,235.43,235.36,36.94510099]
[1732160448892,0.7965878,235.43,235.37,24.92470099]
[1732160449700,0.7965878,235.43,235.38,24.92470099]
[1732160449897,0.79657824,235.42,235.38,24.92470099]
[1732160450104,0.79656166,235.44,235.4,24.92470099]
[1732160450284,0.79656166,235.44,235.37,23.776884]
[1732160450285,0.79648516,235.46,235.41,24.92470099]
[1732160451110,0.79648516,235.46,235.4,24.92470099]
[1732160451414,24.92470099,235.41,235.32,24.92470099]
[1732160451592,0.79665627,235.4,235.33,24.92470099]
[1732160451992,0.79665627,235.4,235.34,24.92470099]
[1732160452493,0.79667129,235.41,235.35,24.92470099]
[1732160452699,0.79667129,235.41,235.36,24.92470099]
[1732160453006,16.9242,235.49,235.37,24.92470099]
[1732160453007,0.79660152,235.43,235.37,24.92470099]
[1732160453219,0.79659379,235.44,235.41,24.92470099]
[1732160453398,0.79659379,235.48,235.43,24.92470099]
[1732160453597,0.79659379,235.48,235.42,24.92470099]
[1732160453912,24.92470099,235.47,235.4,24.92470099]
[1732160454101,0.79655108,235.46,235.4,24.92470099]
[1732160454487,0.79655108,235.46,235.39,24.92470099]
[1732160454691,0.79650815,235.46,235.41,24.92470099]
[1732160455407,0.79650815,235.46,235.35,23.776884]
[1732160455408,0.79650815,235.46,235.4,24.92470099]
[1732160455808,0.79650815,235.46,235.41,24.92470099]
[1732160456025,0.79644459,235.47,235.42,24.92470099]
[1732160456707,0.79639714,235.49,235.45,24.92470099]
[1732160457015,0.79639714,235.49,235.38,0.5]
[1732160457016,0.79639714,235.49,235.44,24.92470099]
[1732160457321,0.79639714,235.49,235.43,24.92470099]
[1732160457702,0.79637378,235.5,235.46,24.92470099]
[1732160457916,25.72096905,235.53,235.45,24.92470099]
[1732160458217,24.92470099,235.51,235.45,23.776884]
[1732160458425,24.92470099,235.48,235.41,24.92470099]
[1732160458719,0.79628586,235.5,235.41,24.92470099]
[1732160458720,0.79638364,235.47,235.42,24.92470099]
[1732160459038,24.92470099,235.48,235.41,48.70158499]
[1732160459189,0.79637871,235.47,235.41,48.70158499]
[1732160459393,0.79637871,235.47,235.42,24.92470099]
[1732160460210,0.79637878,235.48,235.42,24.92470099]
[1732160461199,0.79635049,235.49,235.42,24.92470099]
[1732160462395,0.79635049,235.49,235.41,23.776884]
[1732160462396,0.79635049,235.49,235.43,24.92470099]
[1732160462626,0.79635049,235.49,235.42,24.92470099]
[1732160463432,0.79635049,235.49,235.43,24.92470099]
[1732160463597,24.92470099,235.44,235.37,24.92470099]
[1732160463915,0.79654483,235.43,235.37,24.92470099]
[1732160464122,25.72124582,235.43,235.35,24.92470099]
[1732160464422,24.92470099,235.42,235.35,24.92470099]
[1732160464619,0.79658698,235.41,235.37,24.92470099]
[1732160464820,0.7965227,235.43,235.38,24.92470099]
[1732160465712,0.79650913,235.44,235.38,24.92470099]
[1732160466827,0.79650913,235.44,235.32,30.12508893]
[1732160466828,24.92470099,235.4,235.34,23.776884]
[1732160467009,24.92470099,235.38,235.3,37.22770099]
[1732160467206,24.92470099,235.35,235.27,24.92470099]
[1732160467404,0.79679652,235.34,235.27,24.92470099]
[1732160467729,24.92470099,235.35,235.27,24.92470099]
[1732160468099,24.92470099,235.31,235.25,12.1947]
[1732160468301,25.72166696,235.3,235.23,55.17370099]
[1732160468617,24.92470099,235.28,235.2,29.62508893]
[1732160468825,0.79710696,235.27,235.2,29.62508893]
[1732160469222,0.79710696,235.27,235.22,24.92470099]
[1732160469427,0.79699031,235.28,235.23,24.92470099]
[1732160469609,0.79701084,235.29,235.23,24.92470099]
[1732160469998,0.79701084,235.29,235.24,23.776884]
[1732160470606,0.79698396,235.29,235.24,23.776884]
[1732160470806,0.79697638,235.3,235.24,23.776884]
[1732160471115,24.92470099,235.35,235.28,48.70158499]
[1732160471318,0.79682857,235.34,235.29,24.92470099]
[1732160471936,0.79682857,235.34,235.24,23.776884]
[1732160471937,24.92470099,235.32,235.24,23.776884]
[1732160472125,24.92470099,235.3,235.24,23.776884]
[1732160472304,25.72170796,235.29,235.23,23.776884]
[1732160472505,25.72170796,235.29,235.21,24.92470099]
[1732160473029,24.92470099,235.27,235.2,24.92470099]
[1732160473210,0.79711667,235.26,235.2,24.92470099]
[1732160473608,24.92470099,235.33,235.25,24.92470099]
[1732160473825,0.79695862,235.32,235.26,23.776884]
[1732160474037,24.92470099,235.31,235.24,23.776884]
[1732160474202,4.2485,235.38,235.23,24.92470099]
[1732160474203,24.92470099,235.29,235.23,23.776884]
[1732160474400,0.79702328,235.28,235.23,23.776884]
[1732160474817,15.58085044,235.29,235.23,23.776884]
[1732160475416,15.58085044,235.3,235.23,23.776884]
[1732160475629,0.5,235.41,235.25,15.58085044]
[1732160475630,0.79698446,235.29,235.25,15.58085044]
[1732160476615,15.58085044,235.35,235.27,15.58085044]
[1732160476817,0.79688963,235.34,235.28,15.58085044]
[1732160477027,0.5,235.47,235.28,15.58085044]
[1732160477028,0.79686892,235.4,235.33,39.35773444]
[1732160477226,15.5586,235.44,235.36,15.5586]
[1732160477403,15.5586,235.39,235.33,23.776884]
[1732160477733,16.35533481,235.38,235.31,23.776884]
[1732160477912,15.5586,235.33,235.23,4.6351456]
[1732160478228,0.79686594,235.32,235.26,15.5586]
[1732160478532,0.79686594,235.32,235.28,15.5586]
[1732160478706,15.5586,235.36,235.28,15.5586]
[1732160478910,16.35543678,235.35,235.27,15.5586]
[1732160479125,0.79683678,235.35,235.28,15.5586]
[1732160479507,0.79684162,235.43,235.34,15.5586]
[1732160479707,15.5586,235.45,235.37,15.5586]
[1732160479920,15.5586,235.43,235.35,15.5586]
[1732160480122,0.79674076,235.42,235.35,15.5586]
[1732160480409,0.79674076,235.42,235.37,15.5586]
[1732160480605,0.79660524,235.44,235.4,15.5586]
[1732160480911,0.79648327,235.48,235.4,15.5586]
[1732160481125,15.5586,235.47,235.4,15.5586]
[1732160481334,0.796548,235.46,235.4,15.5586]
[1732160481517,0.796548,235.46,235.42,15.5586]
[1732160481708,0.79645567,235.48,235.42,15.5586]
[1732160482330,0.79645567,235.48,235.33,4.6351456]
[1732160482331,0.79641777,235.49,235.46,15.5586]
[1732160482531,0.79629585,235.54,235.46,15.5586]
[1732160482740,0.79629585,235.54,235.47,24.8751678]
[1732160484318,0.79624443,235.55,235.51,24.8751678]
[1732160484731,0.79614925,235.58,235.51,24.8751678]
[1732160485335,0.79614925,235.58,235.53,24.8751678]
[1732160485734,0.79599772,235.6,235.55,24.8751678]
[1732160486041,0.79599772,235.6,235.56,24.85741539]
[1732160486238,0.79592318,235.62,235.56,24.85741539]
[1732160487318,0.79595949,235.61,235.56,24.85741539]
[1732160487649,0.79594633,235.64,235.56,24.85741539]
[1732160488233,0.79594633,235.64,235.58,24.85741539]
[1732160488949,0.79594633,235.64,235.6,24.85741539]
[1732160489119,12.0007,235.76,235.55,31.1394]
[1732160489120,0.79578569,235.66,235.62,24.85741539]
[1732160489322,0.79573527,235.69,235.62,24.85741539]
[1732160489519,0.79573527,235.69,235.65,24.85741539]
[1732160489730,0.79564213,235.72,235.65,24.85741539]
[1732160489951,0.79564213,235.72,235.58,11.5465]
[1732160489952,24.85741539,235.69,235.61,24.85741539]
[1732160490119,24.85741539,235.67,235.59,24.85741539]
[1732160490319,24.85741539,235.61,235.55,31.1394]
[1732160490534,24.85741539,235.63,235.57,24.85741539]
[1732160490737,24.85741539,235.63,235.56,24.85741539]
[1732160490923,24.85741539,235.63,235.57,23.776884]
[1732160491123,24.85741539,235.65,235.58,24.85741539]
[1732160491336,25.65324083,235.64,235.57,48.63429939]
[1732160491715,25.65324083,235.64,235.58,24.85741539]
[1732160491716,0.79582544,235.64,235.58,24.85741539]
[1732160491919,25.65324083,235.64,235.57,48.63429939]
[1732160492428,24.85741539,235.67,235.6,24.85741539]
[1732160492623,0.79577951,235.66,235.62,24.85741539]
[1732160492844,0.79572172,235.75,235.65,24.85741539]
[1732160493145,24.85741539,235.77,235.69,24.85741539]
[1732160493355,25.652903,235.76,235.69,24.85741539]
[1732160493520,25.652903,235.76,235.66,23.776884]
[1732160493521,0.79548761,235.76,235.73,24.85741539]
[1732160493726,0.79538609,235.8,235.74,24.85741539]
[1732160494333,0.79538609,235.8,235.76,24.85741539]
[1732160494731,0.79531375,235.83,235.76,24.85741539]
[1732160496037,0.79531375,235.83,235.77,24.85741539]
[1732160496237,0.7953025,235.85,235.82,24.85741539]
[1732160496443,0.79507957,235.9,235.84,24.85741539]
[1732160496652,0.79507957,235.9,235.85,24.85741539]
[1732160497253,0.79507957,235.9,235.86,24.85741539]
[1732160497451,25.65239801,235.94,235.86,24.85741539]
[1732160497653,0.79498262,235.94,235.89,24.85741539]
[1732160498461,0.79496637,235.93,235.89,24.85741539]
[1732160498836,0.79496637,235.93,235.91,24.85741539]
[1732160499553,0.79495544,235.96,235.91,24.85741539]
[1732160499863,0.79495544,235.96,235.95,24.85741539]
[1732160500167,0.79478779,235.97,235.95,24.85741539]
[1732160500338,0.79478779,235.97,235.9,24.85741539]
[1732160501042,0.79478779,235.97,235.91,24.85741539]
[1732160501356,0.79478779,235.97,235.94,24.85741539]
[1732160501662,9.64107841,235.99,235.96,24.85741539]
[1732160501955,1.26016503,235.99,235.96,22.3744776]
[1732160502160,1.26016503,235.99,235.96,24.85741539]
[1732160502333,1.26016503,235.99,235.89,23.776884]
[1732160502533,1.26016503,235.99,235.98,24.85741539]
[1732160502534,0.4653634,235.99,235.98,24.85741539]
[1732160503749,0.79453531,236.08,235.99,24.276884]
[1732160503954,24.85741539,236.19,236.07,24.85741539]
[1732160504140,0.79413403,236.18,236.12,24.85741539]
[1732160504456,0.79413403,236.18,236.14,5.8225581]
[1732160504957,0.79413403,236.18,236.16,24.85741539]
[1732160505167,9.12367351,236.23,236.16,24.85741539]
[1732160505168,0.79402684,236.22,236.16,2.07820289]
[1732160505451,24.85741539,236.18,236.1,24.85741539]
[1732160505650,0.79414454,236.17,236.13,24.85741539]
[1732160505864,0.79414454,236.17,236.12,24.85741539]
[1732160506548,0.79411306,236.16,236.13,24.85741539]
[1732160506749,0.79411152,236.19,236.04,24.85741539]
[1732160506950,0.79411152,236.19,236.15,24.85741539]
[1732160507353,0.79411152,236.19,236.17,24.85741539]
[1732160507665,0.79396773,236.22,236.18,24.85741539]
[1732160507846,0.79396773,236.22,236.2,24.85741539]
[1732160508031,0.79396773,236.22,236.2,5.41432429]
[1732160509038,0.79396773,236.22,236.18,24.85741539]
[1732160509238,24.85741539,236.2,236.13,24.85741539]
[1732160509456,9.12367351,236.23,236.11,24.85741539]
[1732160509457,24.85741539,236.18,236.11,24.85741539]
[1732160509756,0.79404105,236.19,236.12,24.85741539]
[1732160509757,0.79408229,236.17,236.12,24.85741539]
[1732160510263,24.85741539,236.15,236.08,24.85741539]
[1732160510447,0.79417845,236.14,236.08,24.85741539]
[1732160511034,0.79417845,236.14,236.07,24.85741539]
[1732160511252,24.85741539,236.13,236.06,24.85741539]
[1732160511432,0.79426872,236.12,236.06,24.85741539]
[1732160511836,25.65168411,236.12,236.05,24.85741539]
[1732160512054,24.85741539,236.11,236.04,24.85741539]
[1732160512356,0.79431183,236.1,236.05,24.85741539]
[1732160512546,0.79431183,236.1,236.09,24.85741539]
[1732160512738,0.79422713,236.16,236.09,24.85741539]
[1732160512939,0.79422713,236.16,236.13,24.85741539]
[1732160513365,0.79414544,236.19,236.15,24.85741539]
[1732160513545,1.2593837,236.23,236.18,24.85741539]
[1732160513747,1.2593837,236.23,236.19,24.85741539]
[1732160514154,1.2593837,236.23,236.19,22.61872169]
[1732160514938,1.2593837,236.23,236.17,24.85741539]
[1732160516259,1.2593837,236.23,236.2,24.85741539]
[1732160516461,1.2593837,236.23,236.19,24.85741539]
[1732160517043,1.2593837,236.23,236.18,24.85741539]